Cogmind - Beta 9.3 @@@ ROGUE MODE // 2019.12.22 @ 13:03:40 Player: Steve French Result: Smashed by cave-in Performance ------------- Evolutions (0) 0 Regions Visited (1) 200 Robots Destroyed (7) 35 Value Destroyed (135) 135 Prototype IDs (0) 0 Alien Tech Used (0) 0 Bonus (0) 0 TOTAL SCORE: 370 Bonus ------- None Cogmind --------- Core Integrity 0/250 Matter 119/300 Energy 43/100 System Corruption 8% Temperature Cool (202) Movement Treading (160) Location -10/Materials Parts ------- > --- POWER (1) -------- (None) > --- PROPULSION (2) --- Light Treads Light Treads > --- UTILITY (2) ------ Small Storage Unit > --- WEAPON (2) ------- Mining Laser Mining Laser > --- INVENTORY (6) ---- Ion Engine Wheel Wheel Medium Laser Small Laser Peak State ------------ > --- POWER ------------ Light Ion Engine > --- PROPULSION ------- Light Treads Light Treads > --- UTILITY ---------- Small Storage Unit Structural Scanner > --- WEAPON ----------- EM Pulse Gun Grenade Launcher > --- INVENTORY -------- Ion Engine Wheel Wheel [Rating: 7] Favorites ----------- Power Light Ion Engine Engine Light Ion Engine Propulsion Light Treads Treads Light Treads Utility Small Storage Unit Device Structural Scanner Storage Small Storage Unit Weapon EM Pulse Gun Energy Gun EM Pulse Gun Launcher Grenade Launcher Special Weapon Mining Laser Build | -11 -10 ------- Run | Scr Mat Slots Evolved . | . . Power . | . . Propulsion . | . . Utility . | . . Weapon . | . . Parts Attached 12 | 5 7 Power 1 | 1 . Engine 1 | 1 . Core . | . . Reactor . | . . Propulsion 2 | 2 . Treads 2 | 2 . Leg . | . . Wheel . | . . Hover . | . . Flight . | . . Utility 2 | 1 1 Device 1 | . 1 Storage 1 | 1 . Processor . | . . Hackware . | . . Protection . | . . Artifact . | . . Weapon 7 | 1 6 Energy Gun 4 | 1 3 Energy Cannon . | . . Ballistic Gun . | . . Ballistic Cannon . | . . Launcher 1 | . 1 Special Weapon 2 | . 2 Impact Weapon . | . . Slashing Weapon . | . . Piercing Weapon . | . . Special Melee Weapon . | . . Unidentified Prototypes . | . . Parts Lost 4 | . 4 Power 1 | . 1 Propulsion . | . . Utility 1 | . 1 Weapon 2 | . 2 Highest Loss Streak 3 | . 3 Average Slot Usage (%) 85 | . 85 Engine 14 | . 14 Treads 28 | . 28 Device 5 | . 5 Storage 14 | . 14 Energy Gun 16 | . 16 Launcher 2 | . 2 Special Weapon 3 | . 3 Naked Turns . | . . Heaviest Build 13 | 9 13 Greatest Support 40 | 40 40 Greatest Overweight (x) 1 | 1 . Average Overweight (x) . | . . Largest Inventory Capacity 6 | 6 6 Average Capacity 5 | 5 6 Most Carried 6 | 3 6 Average Carried 2 | 1 3 Final Capacity 6 | 6 6 Final Carried 5 | 3 5 Class Distribution -------------------- 100% | Mutant Dominant Class ---------------- Mutant | -10/Materials Resources | -11 -10 ----------- Run | Scr Mat Matter Collected 265 | 249 16 Remotely . | . . Salvage Created 140 | 16 124 Parts 10 | 3 7 Haulers Intercepted . | . . Recyclers Shooed . | . . Parts Field Recycled . | . . Retrieved Matter . | . . Parts Self-Destructed . | . . Prevented . | . . Kills | -11 -10 ------- Run | Scr Mat Combat Hostiles Destroyed 2 | . 2 AOE 2 | . 2 Classes Destroyed 5 | 1 4 Worker 1 | 1 . Builder 1 | . 1 Recycler 1 | . 1 Watcher 2 | . 2 Grunt 2 | . 2 Best Kill Streak 5 | 1 5 Combat Bots Only 2 | . 2 Max Kills in Single Turn 2 | 1 2 Gunslinging . | . . Exploded 1 | . 1 Melee . | . . Uniques/NPCs Destroyed . | . . Combat | -11 -10 -------- Run | Scr Mat Damage Taken 750 | . 750 Core 268 | . 268 Absorbed by Shields . | . . Core Remaining (%) 100 | 100 . Volleys Fired 26 | 1 25 Largest 2 | 1 2 Hottest 200 | 40 200 Shots Fired 41 | 1 40 Gun 16 | 1 15 Cannon . | . . Launcher 13 | . 13 Special 12 | . 12 Kinetic . | . . Thermal 20 | . 20 Explosive 13 | . 13 Electromagnetic 8 | 1 7 Robot Hit Streak 4 | 1 4 Robot Miss Streak 3 | . 3 Penetration Max . | . . Secondary Targets . | . . Shots Hit Robots 10 | 1 9 Core Hits 9 | 1 8 Critical Hits . | . . Critical Kills . | . . Critical Parts Destroyed . | . . Melee Attacks . | . . Impact . | . . Slashing . | . . Piercing . | . . Sneak Attacks . | . . Combat Hostiles . | . . Follow-up Attacks . | . . Damage Inflicted 669 | 12 657 Guns 83 | 12 71 Cannons . | . . Explosions 586 | . 586 Melee . | . . Ramming . | . . Kinetic . | . . Thermal 70 | . 70 Explosive 516 | . 516 Electromagnetic 83 | 12 71 Impact . | . . Slashing . | . . Piercing . | . . Highest Corruption 4 | . 4 Average Corruption 4 | . 4 Corruption Purged . | . . Effects 5 | . 5 Message Errors 1 | . 1 Matter Fused 2 | . 2 Energy Discharges 2 | . 2 Overload Shots . | . . Overflow Damage 35 | . 35 Projectiles . | . . Explosions 35 | . 35 Melee . | . . Knockbacks . | . . Impact . | . . Kinetic . | . . Secondary . | . . Self-Inflicted Damage 103 | . 103 Shots 6 | . 6 Rammed . | . . Targets Rammed . | . . Kicked . | . . Crushed . | . . Highest Temperature 202 | . 202 Average Temperature 72 | . 72 Received Heat Transfer 135 | . 135 Siege Activations . | . . Robots Corrupted . | . . Combat Hostiles . | . . Parts Fried 1 | . 1 Impact Corruptions . | . . Robots Melted . | . . Combat Hostiles . | . . Parts Melted . | . . Heat Transferred 100 | . 100 Parts Sabotaged . | . . Parts Stolen . | . . Parts Stripped . | . . Power Chain Reactions 1 | . 1 Missiles Intercepted . | . . Alert | -11 -10 ------- Run | Scr Mat Peak Influence 115 | 5 115 Average Influence 49 | . 65 Maximum Alert Level . | . . Low Security (%) 100 | 100 100 Level 1 . | . . Level 2 . | . . Level 3 . | . . Level 4 . | . . Level 5 . | . . High Security . | . . Max Security . | . . Squads Dispatched . | . . Investigation . | . . Extermination . | . . Reinforcement . | . . Assault . | . . Garrison . | . . Intercept . | . . Construction Impeded . | . . Haulers Reinforced . | . . Stealth | -11 -10 --------- Run | Scr Mat Distress Signals 1 | . 1 Communications Jammed . | . . Distress Signals . | . . Times Spotted 5 | . 5 Peak Tracking Total 3 | . 3 Tactical Retreats . | . . Traps | -11 -10 ------- Run | Scr Mat Traps Triggered . | . . Indirectly . | . . Trap Hack Attempts . | . . Triggered . | . . Disarmed . | . . Reprogrammed . | . . Reused . | . . Traps Extracted . | . . Installed . | . . Triggered . | . . Machines | -11 -10 ---------- Run | Scr Mat Machines Disabled 1 | . 1 Max in Single Turn 1 | . 1 Machines Sabotaged . | . . Garrisons Compromised . | . . Overloaded Fab Kills . | . . Fab Network Shutdowns . | . . Hacking | -11 -10 --------- Run | Scr Mat Machines Accessed . | . . Terminals . | . . Fabricators . | . . Repair Stations . | . . Recycling Units . | . . Scanalyzers . | . . Garrison Access . | . . Total Hacks . | . . Successful . | . . Failed . | . . Catastrophic . | . . Database Lockouts . | . . Manual . | . . Terminals . | . . Fabricators . | . . Repair Stations . | . . Recycling Units . | . . Scanalyzers . | . . Garrison Access . | . . Terminal Hacks . | . . Fabricator Hacks . | . . Repair Station Hacks . | . . Recycling Unit Hacks . | . . Scanalyzer . | . . Garrison Access Hacks . | . . Unauthorized Hacks . | . . Terminals . | . . Fabricators . | . . Repair Stations . | . . Recycling Units . | . . Scanalyzers . | . . Garrison Access . | . . Data Cores Recovered . | . . Used . | . . Hacking Detections . | . . Full Trace Events . | . . Feedback Events . | . . Feedback Blocked . | . . Robot Schematics Acquired . | . . Robots Built . | . . Matter . | . . Time . | . . Total Robot Build Rating . | . . Part Schematics Acquired . | . . Parts Built . | . . Matter . | . . Time . | . . Total Part Build Rating . | . . Parts Repaired . | . . Time . | . . Parts Recycled . | . . Recycled Matter . | . . Retrieved Matter . | . . Retrieved Components . | . . Parts Scanalyzed . | . . Part Schematics Acquired . | . . Parts Damaged . | . . Bothacking | -11 -10 ------------ Run | Scr Mat Used RIF Installer . | . . Robots Hacked . | . . Non-combat . | . . Combat . | . . Robot Hacks Applied . | . . Relay Couplers Released . | . . Robots Rewired . | . . Allies Hacked . | . . Hacks Repelled . | . . Allies | -11 -10 -------- Run | Scr Mat Total Allies . | . . Largest Group . | . . Highest-Rated Group . | . . Highest-Rated Ally . | . . Total Orders . | . . Ally Attacks . | . . Total Damage . | . . Kills . | . . Allies Corrupted . | . . Allies Melted . | . . Intel | -11 -10 ------- Run | Scr Mat Robot Analysis Total . | . . Derelict Logs Recovered . | . . Drone Launches . | . . Drone Recoveries . | . . Exploration | -11 -10 ------------- Run | Scr Mat Turns Passed 447 | 111 336 Spaces Moved 212 | 64 148 Core 7 | 7 . Treads 205 | 57 148 Legs . | . . Wheels . | . . Hover . | . . Flight . | . . Fastest Speed 50 | 50 160 Average Speed 157 | 151 160 Slowest Speed 160 | 160 160 Overloaded Moves . | . . Propulsion Burnouts . | . . Robots Hopped . | . . Cave-ins Triggered 2 | . 2 Exploration Rate (%) 14 | 6 22 Regions Visited 1 Branch Regions . Pre-discovered Areas . | . . Known Exits Taken . | . . Unknown Exits Taken 1 | 1 . Scrap Searched . | . . Spaces Dug 8 | . 8 Terrain Destroyed 75 | . 75 Melee . | . . Projectile 11 | . 11 AOE 64 | . 64 Actions | -11 -10 --------- Run | Scr Mat Total 267 | 77 190 Wait . | . . Move 211 | 63 148 Hop . | . . Pick Up 15 | 8 7 Fast Attach . | . . Attach 12 | 5 7 Detach 2 | . 2 Swap . | . . Drop 1 | . 1 Fire 26 | 1 25 Melee . | . . Ram . | . . Kick . | . . Crush . | . . Escape Stasis . | . . Rewire . | . . Trap . | . . Miscellaneous . | . . Route ------- -11/Scrapyard -10/Materials (discovered 1 exit: [*Min]) History --------- Turn | Location | Event 9 | -11/Scrapyard | Discovered new exit (range 15) 112 | -11/Scrapyard | Entered Materials 255 | -10/Materials | Crushed by falling debris 255 | -10/Materials | Core integrity fell below 50% 255 | -10/Materials | Core integrity fell below 20% 286 | -10/Materials | Lost 3 parts (1u2w) 308 | -10/Materials | Build established: Mutant 360 | -10/Materials | Discovered new exit (range 12) 449 | -10/Materials | Crushed by falling debris 449 | -10/Materials | Smashed by cave-in Last Messages --------------- 00326_ K-01 Serf collects debris. 00326_ U-05 Engineer lays Concrete. 00328_ System corrupted: Matter fused (-10). 00328_ U-05 Engineer builds a Wall. 00330_ U-05 Engineer lays Concrete. 00333_ U-05 Engineer builds a Wall. 00334_ U-05 Engineer lays Concrete. 00337_ U-05 Engineer builds a Door. 00345_ System corrupted: Matter fused (-6). 00360_ U-05 Engineer builds a Wall. 00360_ EXIT=FOUND 00371_ System corrupted: Energy discharge (-36). 00389_ System corrupted: Energy discharge (-33). 00392_ Acquired Mining Laser. 00435_ < EULOZ=OL8FABLQOM&03 Q457 BTDYT 00449_ The unstable cave ceiling collapses. 00449_ Crushed by falling debris. 00449_ Lgt. Ion Engine destroyed. 00449_ System corrupted by crushing effect (+4). [Achievement: First Step to Greatness] Map ----- +----------------------------------------------------+ | | | | | | | | | | | | | | | | | | | | | | | | | | | | | | | ????????????????????????????????????????? | | ????????????????????????????????????????? | | ????????????????????????????????????????? | | ????????????????????????????????????????? | | ????????#####???????????????????????????? | | ???????##"""##??????????????????????????? | | ??????##" |"##?????????????????????????? | | ??????#"" ""#?????????????????????????? | | ??????# ###???????????????????????? | | ???#### < ; #####???????????????????? | | ???# # ; @ #?????????#####?????? | | ???# # ; #####?????????# #?????? | | ???# ## #;#??????????????# #?????? | | ???# ### ###?##???##???????# #?????? | | ???# #?# # ?? ??? #???????# ####### | | ???# #??# + ? ??? ######### # | | ???# #??# # """ """ # # # """" | | ???# #??# # """ """ #""" # # """" | | ???# #??# # """ """ #""" # # """" | | ####+#### # """ # # """" | | # # # #""" # # """" | | # + % + + """" | | # # ### ## #""" # # """" | | # # # # # " # # | | # ### * # ####### | | # !%= # #?????? | | # | # #?????? | | # # # ### #?????? | | # [ # ##+## ####?# #?????? | | # # # #####????# ?????? | | # # ###??????# ?????? | | ######## [## #????????# ????? | | ???????## !! ## #????????# ????? | | ????????## ^ ! ## #????????# "" ????? | | ?????????# ## ????????# "Y ???? | +----------------------------------------------------+ Best States ------------- Heat Dissipation 25 Energy Generation 10 Energy Capacity 125 Matter Stores 299 Matter Capacity 300 Sight Range 16 Terrain Scan Density 10 Evasion (%) 40 Recoil Reduction 2 Item Schematics ----------------- None Robot Schematics ------------------ None Fabricated ------------ Nothing Alien Tech Used ----------------- None Achievements -------------- First Step to Greatness Challenges ------------ None Game ------ Seed EnhancedSigixCharger Manual? 0 Play Time 00:06:39 Cumulative 0.6 hours Start 2019.12.22 @ 12:59:30 End 2019.12.22 @ 13:03:40 Sessions 1 Manual Loads 0 Difficulty Rogue Special Mode None Game No. 2 Rogue 2 Adventurer 0 Explorer 0 Win Type - Total 0 Types 0/0/0/0/0/0/0 Lore% 1 Gallery% 3 Achievement% 3 Wizard Run 0 Options --------- ASCII 0 Keyboard 0 Movement Mouse Keybinds 0 Fullscreen 2 Font 16/Dina Map View 112x50 Tactical HUD 1 Map Filters NONE Filters NONE Steam 1 RUN: 729b06ce-9c04-4560-bc51-b9b3eb6a6420